[Event "Early-Titled-Tuesday-Blitz-January-16-2024"]
[Site "Chess.com"]
[Date "2024.01.16"]
[Round "3"]
[White "DonJuanEGenaro"]
[Black "InitiatingASC"]
[Result "0-1"]
[WhiteElo "1868"]
[BlackElo "2421"]
[TimeControl "180+1"]
[EndTime "8:28:17 PST"]
[Termination "InitiatingASC won by resignation"]

1. d4 {[%clk 0:03:00.9]} 1... d5 {[%clk 0:02:41.6]} 2. c4 {[%clk 0:02:56.4]}
2... e6 {[%clk 0:02:40.1]} 3. Nf3 {[%clk 0:02:53]} 3... c5 {[%clk 0:02:40.3]} 4.
e3 {[%clk 0:02:52.3]} 4... Nc6 {[%clk 0:02:37.3]} 5. Nc3 {[%clk 0:02:50.8]} 5...
Nf6 {[%clk 0:02:36.7]} 6. Be2 {[%clk 0:02:49.7]} 6... a6 {[%clk 0:02:33.9]} 7.
a3 {[%clk 0:02:47]} 7... dxc4 {[%clk 0:02:33.8]} 8. Bxc4 {[%clk 0:02:45.1]} 8...
b5 {[%clk 0:02:34]} 9. Ba2 {[%clk 0:02:44.2]} 9... cxd4 {[%clk 0:02:33.5]} 10.
exd4 {[%clk 0:02:41.9]} 10... Bb7 {[%clk 0:02:32.5]} 11. d5 {[%clk 0:02:41.5]}
11... exd5 {[%clk 0:02:29.4]} 12. Nxd5 {[%clk 0:02:39.4]} 12... Nxd5 {[%clk
0:02:26.7]} 13. Bxd5 {[%clk 0:02:37.4]} 13... Be7 {[%clk 0:02:22.9]} 14. O-O
{[%clk 0:02:22.4]} 14... O-O {[%clk 0:02:21.9]} 15. Re1 {[%clk 0:02:16.5]} 15...
Bf6 {[%clk 0:02:20.9]} 16. Bxc6 {[%clk 0:01:47.5]} 16... Bxc6 {[%clk 0:02:15.3]}
17. Qxd8 {[%clk 0:01:43.5]} 17... Rfxd8 {[%clk 0:02:04.6]} 18. Bg5 {[%clk
0:01:31.7]} 18... Bxb2 {[%clk 0:01:51.8]} 19. Bxd8 {[%clk 0:01:24.4]} 19... Bxa1
{[%clk 0:01:47.7]} 20. Rxa1 {[%clk 0:01:23.1]} 20... Rxd8 {[%clk 0:01:38.5]} 21.
Ne5 {[%clk 0:01:21.4]} 21... Bd5 {[%clk 0:01:35.2]} 22. Nd3 {[%clk 0:01:19.4]}
22... Rc8 {[%clk 0:01:31.2]} 23. Nb4 {[%clk 0:01:18]} 23... Bb7 {[%clk
0:01:30.1]} 24. f3 {[%clk 0:01:17.2]} 24... g6 {[%clk 0:01:28.9]} 25. Kf2 {[%clk
0:01:16.4]} 25... Kg7 {[%clk 0:01:28.1]} 26. h4 {[%clk 0:01:15.3]} 26... Rc3
{[%clk 0:01:20.9]} 27. Rd1 {[%clk 0:01:12.2]} 27... a5 {[%clk 0:01:11.7]} 28.
Nd5 {[%clk 0:01:07.3]} 28... Rxa3 {[%clk 0:01:09.2]} 29. g4 {[%clk 0:01:01]}
29... Bxd5 {[%clk 0:01:07.2]} 30. Rxd5 {[%clk 0:00:58.9]} 30... b4 {[%clk
0:01:07.4]} 31. Rb5 {[%clk 0:00:57.4]} 31... b3 {[%clk 0:01:07.4]} 32. f4 {[%clk
0:00:53.7]} 32... Ra2+ {[%clk 0:01:03.8]} 33. Ke3 {[%clk 0:00:53.1]} 33... a4
{[%clk 0:01:03.7]} 34. h5 {[%clk 0:00:44]} 34... Rh2 {[%clk 0:00:53.7]} 35. hxg6
{[%clk 0:00:38]} 35... hxg6 {[%clk 0:00:53.1]} 36. Kf3 {[%clk 0:00:36.1]} 36...
a3 {[%clk 0:00:50.2]} 37. Kg3 {[%clk 0:00:33.3]} 37... Rb2 {[%clk 0:00:46.8]}
0-1

[Event "Early-Titled-Tuesday-Blitz-January-16-2024"]
[Site "Chess.com"]
[Date "2024.01.16"]
[Round "3"]
[White "Lady_Nika"]
[Black "AndresDelgado77"]
[Result "1-0"]
[WhiteElo "2603"]
[BlackElo "2373"]
[TimeControl "180+1"]
[EndTime "8:28:24 PST"]
[Termination "Lady_Nika won by checkmate"]

1. d4 {[%clk 0:02:51.4]} 1... Nf6 {[%clk 0:02:59.6]} 2. e3 {[%clk 0:02:47.6]}
2... g6 {[%clk 0:02:49.4]} 3. f4 {[%clk 0:02:46.4]} 3... Bg7 {[%clk 0:02:48.8]}
4. Nf3 {[%clk 0:02:47.3]} 4... c5 {[%clk 0:02:48]} 5. c3 {[%clk 0:02:47]} 5...
d6 {[%clk 0:02:46.9]} 6. Be2 {[%clk 0:02:46.9]} 6... O-O {[%clk 0:02:47.1]} 7.
O-O {[%clk 0:02:47]} 7... a6 {[%clk 0:02:45.7]} 8. Na3 {[%clk 0:02:46.4]} 8...
Nc6 {[%clk 0:02:41.5]} 9. d5 {[%clk 0:02:44.4]} 9... Nb8 {[%clk 0:02:34.6]} 10.
c4 {[%clk 0:02:43.5]} 10... Bg4 {[%clk 0:02:33.8]} 11. h3 {[%clk 0:02:39.8]}
11... Bxf3 {[%clk 0:02:33.6]} 12. Bxf3 {[%clk 0:02:39.9]} 12... Nbd7 {[%clk
0:02:23.7]} 13. Qe2 {[%clk 0:02:39.1]} 13... Rb8 {[%clk 0:02:17]} 14. e4 {[%clk
0:02:38]} 14... Qc7 {[%clk 0:02:12.4]} 15. Re1 {[%clk 0:02:34]} 15... e5 {[%clk
0:01:32.7]} 16. dxe6 {[%clk 0:02:19.4]} 16... fxe6 {[%clk 0:01:31]} 17. Be3
{[%clk 0:02:15]} 17... e5 {[%clk 0:01:16.7]} 18. f5 {[%clk 0:02:12.4]} 18...
gxf5 {[%clk 0:01:09.7]} 19. exf5 {[%clk 0:02:12.6]} 19... e4 {[%clk 0:01:10.1]}
20. Bg4 {[%clk 0:02:10.2]} 20... Ne5 {[%clk 0:01:07.4]} 21. Bg5 {[%clk
0:02:03.1]} 21... Rbe8 {[%clk 0:01:02.6]} 22. Bxf6 {[%clk 0:02:00.3]} 22... Bxf6
{[%clk 0:01:01]} 23. Qxe4 {[%clk 0:01:59.4]} 23... b5 {[%clk 0:00:54.9]} 24. Bh5
{[%clk 0:01:57.4]} 24... Re7 {[%clk 0:00:36]} 25. cxb5 {[%clk 0:01:56.1]} 25...
c4 {[%clk 0:00:28.3]} 26. Qd5+ {[%clk 0:01:52]} 26... Kh8 {[%clk 0:00:27.7]} 27.
bxa6 {[%clk 0:01:50.5]} 27... Qb6+ {[%clk 0:00:26.4]} 28. Kh2 {[%clk 0:01:45.4]}
28... Qxb2 {[%clk 0:00:21.2]} 29. Qxd6 {[%clk 0:01:25.3]} 29... Qf2 {[%clk
0:00:07.9]} 30. Rad1 {[%clk 0:01:12.7]} 30... Qf4+ {[%clk 0:00:06.9]} 31. Kh1
{[%clk 0:01:09.9]} 31... Qxf5 {[%clk 0:00:06.4]} 32. Rf1 {[%clk 0:01:03.6]}
32... Qxh5 {[%clk 0:00:06.1]} 33. Rxf6 {[%clk 0:01:03.7]} 33... Qxd1+ {[%clk
0:00:04.2]} 34. Qxd1 {[%clk 0:01:03.1]} 34... Rxf6 {[%clk 0:00:05.1]} 35. Qd8+
{[%clk 0:01:03]} 35... Rf8 {[%clk 0:00:02.3]} 36. Qxf8# {[%clk 0:01:02.5]} 1-0

[Event "Early-Titled-Tuesday-Blitz-January-16-2024"]
[Site "Chess.com"]
[Date "2024.01.16"]
[Round "3"]
[White "Firouzja2003"]
[Black "Andrey_Klymchuk"]
[Result "1-0"]
[WhiteElo "3160"]
[BlackElo "2799"]
[TimeControl "180+1"]
[EndTime "8:28:27 PST"]
[Termination "Firouzja2003 won by resignation"]

1. e4 {[%clk 0:02:52.2]} 1... c5 {[%clk 0:02:59.4]} 2. Nf3 {[%clk 0:02:52.7]}
2... Nc6 {[%clk 0:02:58.1]} 3. d4 {[%clk 0:02:52.6]} 3... cxd4 {[%clk
0:02:58.3]} 4. Nxd4 {[%clk 0:02:53.5]} 4... g6 {[%clk 0:02:58.6]} 5. c4 {[%clk
0:02:53.4]} 5... d6 {[%clk 0:02:55.9]} 6. Be3 {[%clk 0:02:51.9]} 6... Nf6 {[%clk
0:02:54.8]} 7. f3 {[%clk 0:02:50.1]} 7... Bg7 {[%clk 0:02:49.9]} 8. Nc3 {[%clk
0:02:50.2]} 8... O-O {[%clk 0:02:50]} 9. Qd2 {[%clk 0:02:50.5]} 9... Bd7 {[%clk
0:02:48.4]} 10. Be2 {[%clk 0:02:50.6]} 10... Nxd4 {[%clk 0:02:46.6]} 11. Bxd4
{[%clk 0:02:50.9]} 11... a5 {[%clk 0:02:46.7]} 12. O-O {[%clk 0:02:50]} 12...
Bc6 {[%clk 0:02:46.8]} 13. b3 {[%clk 0:02:47.3]} 13... Nd7 {[%clk 0:02:46.9]}
14. Be3 {[%clk 0:02:47.7]} 14... Nc5 {[%clk 0:02:47.1]} 15. Rfc1 {[%clk
0:02:44.6]} 15... Be5 {[%clk 0:02:46.8]} 16. Rab1 {[%clk 0:02:41]} 16... e6
{[%clk 0:02:46.9]} 17. Bf2 {[%clk 0:02:13.5]} 17... f5 {[%clk 0:02:45.6]} 18.
exf5 {[%clk 0:02:12.8]} 18... Rxf5 {[%clk 0:02:25.5]} 19. Nd1 {[%clk 0:02:12.7]}
19... Bf4 {[%clk 0:02:10]} 20. Be3 {[%clk 0:02:09.6]} 20... e5 {[%clk
0:01:55.5]} 21. Bxf4 {[%clk 0:01:47.4]} 21... Rxf4 {[%clk 0:01:49.4]} 22. Nf2
{[%clk 0:01:47.8]} 22... Qe7 {[%clk 0:01:40.4]} 23. Rd1 {[%clk 0:01:47.3]} 23...
Rd4 {[%clk 0:01:39.9]} 24. Qe3 {[%clk 0:01:46.9]} 24... Rxd1+ {[%clk 0:01:39]}
25. Rxd1 {[%clk 0:01:46.7]} 25... Ne6 {[%clk 0:01:33]} 26. Bf1 {[%clk 0:01:35]}
26... Rf8 {[%clk 0:01:27.6]} 27. Rd2 {[%clk 0:01:16.8]} 27... Rf4 {[%clk
0:01:14.7]} 28. Nh3 {[%clk 0:01:00.5]} 28... Rf7 {[%clk 0:00:56.7]} 29. Bd3
{[%clk 0:00:53.9]} 29... Qh4 {[%clk 0:00:50.1]} 30. Be4 {[%clk 0:00:49.4]} 30...
Bxe4 {[%clk 0:00:47.3]} 31. Qxe4 {[%clk 0:00:49.3]} 31... Qxe4 {[%clk
0:00:46.6]} 32. fxe4 {[%clk 0:00:50.2]} 32... Rd7 {[%clk 0:00:45.9]} 33. Kf2
{[%clk 0:00:49.6]} 33... Kf7 {[%clk 0:00:45.9]} 34. Ke3 {[%clk 0:00:50]} 34...
Ke7 {[%clk 0:00:45.2]} 35. Nf2 {[%clk 0:00:45.7]} 35... Nc5 {[%clk 0:00:43.4]}
36. Nd1 {[%clk 0:00:45.9]} 36... Ke6 {[%clk 0:00:42.8]} 37. Nc3 {[%clk
0:00:46.2]} 37... b6 {[%clk 0:00:36.9]} 38. Nd5 {[%clk 0:00:45.6]} 38... Rb7
{[%clk 0:00:29]} 39. Rf2 {[%clk 0:00:45.2]} 39... b5 {[%clk 0:00:29.1]} 40. cxb5
{[%clk 0:00:38.7]} 40... Rxb5 {[%clk 0:00:26.1]} 41. Nc7+ {[%clk 0:00:39]} 1-0

[Event "Early-Titled-Tuesday-Blitz-January-16-2024"]
[Site "Chess.com"]
[Date "2024.01.16"]
[Round "3"]
[White "aghasiyevkamal"]
[Black "KanalSzachowy"]
[Result "0-1"]
[WhiteElo "2620"]
[BlackElo "2333"]
[TimeControl "180+1"]
[EndTime "8:28:27 PST"]
[Termination "KanalSzachowy won by resignation"]

1. e4 {[%clk 0:02:59.5]} 1... c5 {[%clk 0:02:59.8]} 2. Nf3 {[%clk 0:02:59.1]}
2... Nc6 {[%clk 0:03:00.4]} 3. d4 {[%clk 0:02:57.9]} 3... cxd4 {[%clk
0:03:01.3]} 4. Nxd4 {[%clk 0:02:58.1]} 4... Nf6 {[%clk 0:03:02]} 5. Nc3 {[%clk
0:02:56.8]} 5... e5 {[%clk 0:03:02.4]} 6. Ndb5 {[%clk 0:02:54.5]} 6... Bb4
{[%clk 0:03:02.7]} 7. a3 {[%clk 0:02:52.4]} 7... Bxc3+ {[%clk 0:02:58.6]} 8.
Nxc3 {[%clk 0:02:52.4]} 8... d6 {[%clk 0:02:59.2]} 9. Be3 {[%clk 0:02:34.1]}
9... Ng4 {[%clk 0:02:56.3]} 10. Qd2 {[%clk 0:02:29.2]} 10... Nxe3 {[%clk
0:02:55.1]} 11. Qxe3 {[%clk 0:02:29.5]} 11... O-O {[%clk 0:02:55.3]} 12. Bc4
{[%clk 0:02:08]} 12... Be6 {[%clk 0:02:52.4]} 13. Bd5 {[%clk 0:02:06.7]} 13...
Nd4 {[%clk 0:02:43.1]} 14. Rc1 {[%clk 0:02:05.5]} 14... Rc8 {[%clk 0:02:30]} 15.
O-O {[%clk 0:01:55.4]} 15... Qb6 {[%clk 0:02:19.6]} 16. Rb1 {[%clk 0:01:06.6]}
16... Qa6 {[%clk 0:02:09.4]} 17. Qd2 {[%clk 0:00:57.2]} 17... Rc7 {[%clk
0:02:02.2]} 18. Bxe6 {[%clk 0:00:52.7]} 18... fxe6 {[%clk 0:02:02.5]} 19. f4
{[%clk 0:00:40.4]} 19... Qb6 {[%clk 0:01:57.6]} 20. Kh1 {[%clk 0:00:38.5]} 20...
Rcf7 {[%clk 0:01:44.9]} 21. f5 {[%clk 0:00:32.4]} 21... exf5 {[%clk 0:01:41.6]}
22. Nd5 {[%clk 0:00:32.6]} 22... Qc6 {[%clk 0:01:28.4]} 23. c3 {[%clk
0:00:31.8]} 23... fxe4 {[%clk 0:01:14.5]} 24. Rxf7 {[%clk 0:00:19.6]} 24... Rxf7
{[%clk 0:01:15.4]} 25. Nb4 {[%clk 0:00:10.9]} 25... Qc4 {[%clk 0:01:12]} 26. h3
{[%clk 0:00:11.1]} 26... Rf1+ {[%clk 0:01:05.6]} 27. Rxf1 {[%clk 0:00:11]} 27...
Qxf1+ {[%clk 0:01:06.5]} 28. Kh2 {[%clk 0:00:11.7]} 28... Ne2 {[%clk 0:01:07.4]}
29. Qe3 {[%clk 0:00:09.8]} 29... Qf4+ {[%clk 0:00:55.3]} 30. Qxf4 {[%clk
0:00:09.4]} 30... exf4 {[%clk 0:00:56.2]} 31. Nd5 {[%clk 0:00:08.3]} 31... Kf7
{[%clk 0:00:56.1]} 32. h4 {[%clk 0:00:06.2]} 32... Ke6 {[%clk 0:00:55.4]} 33. c4
{[%clk 0:00:06.7]} 33... Ke5 {[%clk 0:00:51.5]} 0-1

[Event "Early-Titled-Tuesday-Blitz-January-16-2024"]
[Site "Chess.com"]
[Date "2024.01.16"]
[Round "3"]
[White "Darkbluelord"]
[Black "PapaieDudu"]
[Result "0-1"]
[WhiteElo "2176"]
[BlackElo "2416"]
[TimeControl "180+1"]
[EndTime "8:28:27 PST"]
[Termination "PapaieDudu won on time"]

1. e4 {[%clk 0:03:00.9]} 1... c5 {[%clk 0:03:00.3]} 2. Nc3 {[%clk 0:03:00.5]}
2... e6 {[%clk 0:02:59.8]} 3. f4 {[%clk 0:03:01]} 3... d5 {[%clk 0:02:59.9]} 4.
Nf3 {[%clk 0:03:00.9]} 4... d4 {[%clk 0:03:00.4]} 5. Bb5+ {[%clk 0:02:57.8]}
5... Nd7 {[%clk 0:03:00.3]} 6. Ne2 {[%clk 0:02:53.2]} 6... a6 {[%clk 0:02:59.9]}
7. Bd3 {[%clk 0:02:52.6]} 7... b5 {[%clk 0:02:58.9]} 8. b3 {[%clk 0:02:53.1]}
8... Qc7 {[%clk 0:02:58.6]} 9. c4 {[%clk 0:02:40.3]} 9... dxc3 {[%clk
0:02:55.1]} 10. dxc3 {[%clk 0:02:40.2]} 10... Ngf6 {[%clk 0:02:55.5]} 11. Ng3
{[%clk 0:02:34.3]} 11... Be7 {[%clk 0:02:55.4]} 12. O-O {[%clk 0:02:34.2]} 12...
Bb7 {[%clk 0:02:55.7]} 13. Re1 {[%clk 0:02:32.2]} 13... Rd8 {[%clk 0:02:56]} 14.
Qe2 {[%clk 0:02:28.9]} 14... O-O {[%clk 0:02:54.6]} 15. Bb2 {[%clk 0:02:09.5]}
15... c4 {[%clk 0:02:48.5]} 16. bxc4 {[%clk 0:01:52.8]} 16... Nc5 {[%clk
0:02:48.7]} 17. Bc2 {[%clk 0:01:38.7]} 17... Na4 {[%clk 0:02:40.9]} 18. Bxa4
{[%clk 0:01:34.9]} 18... bxa4 {[%clk 0:02:38.5]} 19. e5 {[%clk 0:01:31.5]} 19...
Ng4 {[%clk 0:02:36.5]} 20. h3 {[%clk 0:01:13.4]} 20... Nh6 {[%clk 0:02:26.6]}
21. Rab1 {[%clk 0:01:01.4]} 21... Rd7 {[%clk 0:02:17.2]} 22. Ne4 {[%clk
0:01:00.9]} 22... Rfd8 {[%clk 0:02:12.7]} 23. Nfg5 {[%clk 0:01:00.8]} 23... Nf5
{[%clk 0:02:09.4]} 24. Qh5 {[%clk 0:00:57.5]} 24... Bc5+ {[%clk 0:01:53.9]} 25.
Kh2 {[%clk 0:00:55.9]} 25... h6 {[%clk 0:01:53.7]} 26. Nf3 {[%clk 0:00:40.3]}
26... Bf2 {[%clk 0:01:40.2]} 27. Nxf2 {[%clk 0:00:34.7]} 27... Qxc4 {[%clk
0:01:39.9]} 28. Re4 {[%clk 0:00:30.1]} 28... Bxe4 {[%clk 0:01:37.8]} 29. Nxe4
{[%clk 0:00:24.6]} 29... Qxe4 {[%clk 0:01:38.1]} 30. Re1 {[%clk 0:00:23.1]}
30... Qxf4+ {[%clk 0:01:38.3]} 31. Kg1 {[%clk 0:00:21.4]} 31... Ne3 {[%clk
0:01:21.4]} 32. Bc1 {[%clk 0:00:20.4]} 32... Rd1 {[%clk 0:01:19.8]} 33. Kf2
{[%clk 0:00:09.5]} 33... Rxc1 {[%clk 0:01:14.2]} 34. Rxe3 {[%clk 0:00:08.8]}
34... Rd2+ {[%clk 0:01:13.3]} 35. Re2 {[%clk 0:00:08.8]} 35... Rxe2+ {[%clk
0:01:10]} 36. Kxe2 {[%clk 0:00:09.3]} 36... Rc2+ {[%clk 0:01:10.6]} 37. Kd3
{[%clk 0:00:08]} 37... Qc1 {[%clk 0:01:03.6]} 38. Qg4 {[%clk 0:00:06.9]} 38...
Rxc3+ {[%clk 0:01:00.7]} 39. Ke2 {[%clk 0:00:05.6]} 39... Qe3+ {[%clk
0:01:00.1]} 0-1

[Event "Early-Titled-Tuesday-Blitz-January-16-2024"]
[Site "Chess.com"]
[Date "2024.01.16"]
[Round "3"]
[White "Levanzovsky"]
[Black "Thursday_the_14_th"]
[Result "1-0"]
[WhiteElo "2473"]
[BlackElo "2633"]
[TimeControl "180+1"]
[EndTime "8:28:28 PST"]
[Termination "Levanzovsky won by checkmate"]

1. c4 {[%clk 0:02:55.1]} 1... e5 {[%clk 0:02:59]} 2. Nc3 {[%clk 0:02:53.5]} 2...
Bb4 {[%clk 0:02:59.6]} 3. Qc2 {[%clk 0:02:51.3]} 3... Nf6 {[%clk 0:02:56.8]} 4.
Nf3 {[%clk 0:02:50.3]} 4... Bxc3 {[%clk 0:02:53.4]} 5. bxc3 {[%clk 0:02:47.5]}
5... Nc6 {[%clk 0:02:53.5]} 6. e4 {[%clk 0:02:45.9]} 6... d6 {[%clk 0:02:53.8]}
7. d3 {[%clk 0:02:44.5]} 7... O-O {[%clk 0:02:54.4]} 8. g3 {[%clk 0:02:44.2]}
8... h6 {[%clk 0:02:53.9]} 9. Bg2 {[%clk 0:02:44.4]} 9... Nh7 {[%clk 0:02:53.3]}
10. O-O {[%clk 0:02:43.4]} 10... f5 {[%clk 0:02:53.4]} 11. exf5 {[%clk
0:02:43.9]} 11... Bxf5 {[%clk 0:02:54.3]} 12. Nh4 {[%clk 0:02:41.1]} 12... Be6
{[%clk 0:02:50.2]} 13. Rb1 {[%clk 0:02:39.7]} 13... Rb8 {[%clk 0:02:46.9]} 14.
Be3 {[%clk 0:02:17.8]} 14... Ng5 {[%clk 0:02:42.6]} 15. Qe2 {[%clk 0:01:57.4]}
15... Qf6 {[%clk 0:02:35.7]} 16. f4 {[%clk 0:01:51.6]} 16... Nh3+ {[%clk
0:02:30.2]} 17. Kh1 {[%clk 0:01:13.7]} 17... exf4 {[%clk 0:02:28.9]} 18. Bxf4
{[%clk 0:01:14.6]} 18... Nxf4 {[%clk 0:02:25.8]} 19. Rxf4 {[%clk 0:01:13.3]}
19... Qe5 {[%clk 0:02:11.1]} 20. Re4 {[%clk 0:01:07]} 20... Qxc3 {[%clk
0:02:09.9]} 21. Rxe6 {[%clk 0:01:04.7]} 21... Ne5 {[%clk 0:00:56]} 22. Ng6
{[%clk 0:00:48.6]} 22... Nxg6 {[%clk 0:00:48.2]} 23. Rxg6 {[%clk 0:00:47.5]}
23... Kh8 {[%clk 0:00:43.5]} 24. Rf1 {[%clk 0:00:41.8]} 24... Rxf1+ {[%clk
0:00:27.1]} 25. Qxf1 {[%clk 0:00:42.7]} 25... Re8 {[%clk 0:00:26.7]} 26. Be4
{[%clk 0:00:32.5]} 26... Qe5 {[%clk 0:00:18.4]} 27. Qf7 {[%clk 0:00:23.2]} 27...
Rg8 {[%clk 0:00:18.1]} 28. Rxh6+ {[%clk 0:00:19.6]} 28... gxh6 {[%clk 0:00:18]}
29. Qh7# {[%clk 0:00:20.5]} 1-0

[Event "Early-Titled-Tuesday-Blitz-January-16-2024"]
[Site "Chess.com"]
[Date "2024.01.16"]
[Round "3"]
[White "emeli_chess"]
[Black "ChessGiantYouTube"]
[Result "0-1"]
[WhiteElo "2447"]
[BlackElo "2201"]
[TimeControl "180+1"]
[EndTime "8:28:28 PST"]
[Termination "ChessGiantYouTube won by resignation"]

1. d4 {[%clk 0:03:00.9]} 1... g6 {[%clk 0:02:58.7]} 2. c4 {[%clk 0:03:00.7]}
2... Bg7 {[%clk 0:02:59]} 3. Nc3 {[%clk 0:03:01.1]} 3... d6 {[%clk 0:02:58.8]}
4. e4 {[%clk 0:03:00.9]} 4... e6 {[%clk 0:02:59.1]} 5. f3 {[%clk 0:02:57.6]}
5... h6 {[%clk 0:02:57.5]} 6. Be3 {[%clk 0:02:56.7]} 6... Ne7 {[%clk 0:02:57.9]}
7. Qd2 {[%clk 0:02:55.8]} 7... b6 {[%clk 0:02:55.7]} 8. Bd3 {[%clk 0:02:54.8]}
8... Nd7 {[%clk 0:02:55.6]} 9. Nge2 {[%clk 0:02:53.3]} 9... Bb7 {[%clk
0:02:56.2]} 10. O-O {[%clk 0:02:50.3]} 10... Nc6 {[%clk 0:02:35.9]} 11. a3
{[%clk 0:02:48.7]} 11... e5 {[%clk 0:02:34.9]} 12. d5 {[%clk 0:02:48.3]} 12...
Ne7 {[%clk 0:02:34.7]} 13. b4 {[%clk 0:02:47.4]} 13... f5 {[%clk 0:02:29.4]} 14.
exf5 {[%clk 0:02:45]} 14... gxf5 {[%clk 0:02:27.5]} 15. f4 {[%clk 0:02:41.9]}
15... e4 {[%clk 0:02:10.6]} 16. Bc2 {[%clk 0:02:39.5]} 16... Nf6 {[%clk
0:02:01.3]} 17. Nd4 {[%clk 0:02:36.3]} 17... Bc8 {[%clk 0:02:01.8]} 18. h3
{[%clk 0:02:35.7]} 18... O-O {[%clk 0:02:00.4]} 19. g3 {[%clk 0:02:12.8]} 19...
Kh7 {[%clk 0:01:49.2]} 20. Kh2 {[%clk 0:02:12.2]} 20... Rg8 {[%clk 0:01:48.6]}
21. Rg1 {[%clk 0:02:12.3]} 21... h5 {[%clk 0:01:33.9]} 22. Rg2 {[%clk
0:02:10.6]} 22... Bh6 {[%clk 0:01:24.5]} 23. Rh1 {[%clk 0:02:08]} 23... Bd7
{[%clk 0:01:19.9]} 24. Kg1 {[%clk 0:02:05.8]} 24... Rg6 {[%clk 0:01:16.2]} 25.
Nde2 {[%clk 0:01:47.3]} 25... Qg8 {[%clk 0:01:09.7]} 26. Rhh2 {[%clk 0:01:44.2]}
26... Qg7 {[%clk 0:01:04.4]} 27. Bd4 {[%clk 0:01:43.6]} 27... Rg8 {[%clk
0:01:04]} 28. Nd1 {[%clk 0:01:38.6]} 28... h4 {[%clk 0:00:56.1]} 29. g4 {[%clk
0:01:27.8]} 29... fxg4 {[%clk 0:00:47.3]} 30. hxg4 {[%clk 0:01:26.8]} 30... Rxg4
{[%clk 0:00:44.8]} 31. Bxe4+ {[%clk 0:01:10.9]} 31... Nxe4 {[%clk 0:00:40.7]}
32. Bxg7 {[%clk 0:01:07.9]} 32... Nxd2 {[%clk 0:00:38.7]} 33. Rxg4 {[%clk
0:01:04.2]} 33... Bxg4 {[%clk 0:00:36.1]} 34. Bxh6 {[%clk 0:01:03.9]} 34... Nf3+
{[%clk 0:00:33.7]} 35. Kf2 {[%clk 0:01:01.6]} 35... Nxh2 {[%clk 0:00:33.7]} 36.
Bg5 {[%clk 0:01:00.9]} 36... Nf5 {[%clk 0:00:33.5]} 37. Ndc3 {[%clk 0:00:54.9]}
37... Bxe2 {[%clk 0:00:33.5]} 38. Nxe2 {[%clk 0:00:54.6]} 38... Ng4+ {[%clk
0:00:34.3]} 39. Kf3 {[%clk 0:00:54.1]} 39... Ngh6 {[%clk 0:00:35.2]} 40. Ng1
{[%clk 0:00:48.6]} 40... Nf7 {[%clk 0:00:35.3]} 41. Nh3 {[%clk 0:00:46.1]} 41...
Nxg5+ {[%clk 0:00:35.4]} 42. Nxg5+ {[%clk 0:00:45.4]} 42... Rxg5 {[%clk
0:00:36]} 43. fxg5 {[%clk 0:00:45.8]} 43... Kg6 {[%clk 0:00:36.9]} 44. Kg4
{[%clk 0:00:46.2]} 44... h3 {[%clk 0:00:36.6]} 45. Kxh3 {[%clk 0:00:45.9]} 45...
Kxg5 {[%clk 0:00:37.5]} 46. Kg2 {[%clk 0:00:45]} 46... Ne3+ {[%clk 0:00:38.1]}
47. Kf3 {[%clk 0:00:45.1]} 47... Nxc4 {[%clk 0:00:39]} 48. Ke4 {[%clk
0:00:44.5]} 48... Nxa3 {[%clk 0:00:39.4]} 0-1

[Event "Early-Titled-Tuesday-Blitz-January-16-2024"]
[Site "Chess.com"]
[Date "2024.01.16"]
[Round "3"]
[White "FMCarmona"]
[Black "Brahianzevich"]
[Result "0-1"]
[WhiteElo "2180"]
[BlackElo "2416"]
[TimeControl "180+1"]
[EndTime "8:28:28 PST"]
[Termination "Brahianzevich won on time"]

1. e4 {[%clk 0:03:00.9]} 1... c5 {[%clk 0:02:59.7]} 2. Nf3 {[%clk 0:02:59.7]}
2... d6 {[%clk 0:02:59.9]} 3. d4 {[%clk 0:03:00.2]} 3... cxd4 {[%clk 0:03:00.8]}
4. Nxd4 {[%clk 0:03:00.5]} 4... Nf6 {[%clk 0:03:01.4]} 5. Nc3 {[%clk 0:03:00.4]}
5... a6 {[%clk 0:03:01.6]} 6. Be3 {[%clk 0:03:00.5]} 6... Ng4 {[%clk 0:03:01.5]}
7. Bg5 {[%clk 0:02:51.5]} 7... h6 {[%clk 0:03:01.7]} 8. Bh4 {[%clk 0:02:51.6]}
8... g5 {[%clk 0:03:01.7]} 9. Bg3 {[%clk 0:02:51.8]} 9... Bg7 {[%clk 0:03:02.2]}
10. Qd2 {[%clk 0:02:48]} 10... Nc6 {[%clk 0:02:51.3]} 11. Nb3 {[%clk 0:02:42.2]}
11... Nge5 {[%clk 0:02:41.8]} 12. O-O-O {[%clk 0:02:39.5]} 12... Be6 {[%clk
0:01:58]} 13. h4 {[%clk 0:02:36.1]} 13... g4 {[%clk 0:01:57.8]} 14. Kb1 {[%clk
0:02:31.9]} 14... Rc8 {[%clk 0:01:51.2]} 15. Nd5 {[%clk 0:02:05.9]} 15... O-O
{[%clk 0:01:39.3]} 16. Be2 {[%clk 0:01:59.9]} 16... f5 {[%clk 0:01:30.1]} 17. f4
{[%clk 0:01:49.6]} 17... gxf3 {[%clk 0:01:16.2]} 18. gxf3 {[%clk 0:01:49.4]}
18... fxe4 {[%clk 0:01:12.8]} 19. fxe4 {[%clk 0:01:49.1]} 19... Nf3 {[%clk
0:01:08]} 20. Bxf3 {[%clk 0:01:33]} 20... Rxf3 {[%clk 0:01:07.2]} 21. Rhg1
{[%clk 0:01:31.7]} 21... Kh8 {[%clk 0:01:01.4]} 22. Bf4 {[%clk 0:01:19]} 22...
Qf8 {[%clk 0:00:55.8]} 23. Rdf1 {[%clk 0:01:06.6]} 23... Ne5 {[%clk 0:00:46.1]}
24. Qc1 {[%clk 0:00:41.1]} 24... Bxd5 {[%clk 0:00:37.7]} 25. exd5 {[%clk
0:00:40.5]} 25... Nd3 {[%clk 0:00:32.3]} 26. cxd3 {[%clk 0:00:04.8]} 26... Rxc1+
{[%clk 0:00:30.8]} 0-1